bitfinex/quotes_SOLUSD_20241209
["timestamp","ask_amount","ask_price","bid_price","bid_amount"]
[1733739959584,23.902374,227.07,226.99,1.6024]
[1733739959790,20.0,227.04,226.99,1.6024]
[1733739960659,0.12549,227.07,226.99,1.6024]
[1733739960855,20.0,227.04,226.96,6.383]
[1733739964679,8.03063342,227.12,226.96,6.383]
[1733739964680,13.71693539,227.15,226.96,7.04384243]
[1733739964893,6.85846769,227.14,226.96,7.04384243]
[1733739965057,1.76761555,227.14,226.98,1.6052]
[1733739965266,6.85846769,227.16,226.99,0.25098]
[1733739965678,6.85846769,227.19,227.01,0.37647]
[1733739965871,6.85846769,227.2,227.03,0.25098]
[1733739966074,19.67616369,227.21,227.05,0.12549]
[1733739966271,12.817696,227.21,227.06,1.6052]
[1733739967180,20.0,227.18,227.06,1.6052]
[1733739967492,20.0,227.21,227.06,1.6052]
[1733739967698,21.74576615,227.21,227.07,0.12549]
[1733739967894,20.0,227.19,227.07,0.12549]
[1733739968196,20.0,227.19,227.07,0.37647]
[1733739968561,20.0,227.2,227.07,0.37647]
[1733739968762,20.0,227.2,227.07,0.12549]
[1733739970069,20.0,227.2,227.09,0.12549]
[1733739970277,1.76951566,227.23,227.09,0.12549]
[1733739970567,0.12549,227.24,227.09,0.91130434]
[1733739970773,0.12549,227.25,227.1,1.6488]
[1733739971179,6.75759,227.25,227.1,1.6488]
[1733739971472,20.0,227.22,227.1,1.6488]
[1733739971786,20.0,227.21,227.1,1.6488]
[1733739972971,23.902374,227.2,227.1,1.6488]
[1733739973296,20.0,227.17,227.1,1.6488]
[1733739973778,20.0,227.22,227.1,1.6488]
[1733739974366,20.0,227.18,227.1,1.6488]
[1733739978877,20.0,227.22,227.1,1.6488]
[1733739979186,6.6321,227.25,227.1,1.6488]
[1733739979399,1.75032003,227.25,227.12,0.12549]
[1733739979694,0.12549,227.26,227.13,6.5402]
[1733739980603,20.0,227.24,227.13,6.5402]
[1733739981898,20.0,227.29,227.13,6.5402]
[1733739982118,0.12549,227.29,227.13,6.5402]
[1733739982917,0.25098,227.29,227.13,6.5402]
[1733739983091,24.027864,227.29,227.13,6.5402]
[1733739983291,20.0,227.26,227.13,6.5402]
[1733739985500,20.0,227.26,227.14,1.6235]
[1733739985713,20.0,227.26,227.15,0.12549]
[1733739986426,6.85846769,227.35,227.15,0.12549]
[1733739986427,23.902374,227.34,227.16,0.660179]
[1733739986590,23.902374,227.3,227.16,0.660179]
[1733739986791,23.902374,227.3,227.15,0.25098]
[1733739987623,20.0,227.27,227.15,0.25098]
[1733739989207,20.0,227.27,227.15,0.12549]
[1733739989611,20.0,227.27,227.14,1.6235]
[1733739989818,20.0,227.23,227.14,1.6235]
[1733739991333,20.0,227.28,227.14,1.6235]
[1733739992350,23.902374,227.23,227.14,1.6235]
[1733739992508,20.0,227.2,227.14,1.6235]
[1733739996834,20.0,227.2,227.03,6.0997]
[1733739997033,20.0,227.16,227.03,6.0997]
[1733739997443,23.776884,227.15,227.03,6.0997]
[1733739997646,20.0,227.12,227.03,6.0997]
[1733740000444,20.0,227.08,227.03,6.0997]
[1733740000644,20.0,227.08,226.99,1.6595]
[1733740001167,20.0,227.12,226.99,1.6595]
[1733740001375,20.0,227.08,226.99,1.6595]
[1733740004685,1.80579151,227.12,226.99,1.6595]
[1733740005187,0.12549,227.14,226.99,1.6595]
[1733740005785,3.35150036,227.18,227.0,0.25098]
[1733740005945,3.35150036,227.18,227.0,0.91163227]
[1733740006353,0.12549,227.17,227.0,0.91163227]
[1733740006571,0.12549,227.17,227.0,0.25098]
[1733740007473,23.902374,227.17,227.0,0.25098]
[1733740007711,20.0,227.14,227.0,0.25098]
[1733740008958,3.35150036,227.18,227.04,0.12549]
[1733740008959,1.79770036,227.18,227.04,0.12549]
[1733740009151,8.1965,227.24,227.05,1.5588]
[1733740009360,1.6536,227.24,227.06,0.12549]
[1733740009564,3.4686823,227.24,227.06,0.25098]
[1733740009776,1.6536,227.24,227.08,0.12549]
[1733740010046,14.53356769,227.29,227.08,0.12549]
[1733740010458,0.12549,227.28,227.08,0.25098]
[1733740011573,24.027864,227.28,227.08,0.25098]
[1733740011795,23.902374,227.24,227.08,0.25098]
[1733740012103,20.0,227.21,227.08,0.25098]
[1733740014080,20.0,227.21,227.08,0.12549]
[1733740016488,21.73298161,227.21,227.08,0.12549]
[1733740018186,1.73298161,227.21,227.1,0.25098]
[1733740018376,1.6063,227.29,227.1,7.05494969]
[1733740018589,13.39866769,227.31,227.12,0.25098]
[1733740018900,13.39866769,227.31,227.13,1.6166]
[1733740019108,13.39866769,227.31,227.14,0.12549]
[1733740019426,15.18285385,227.31,227.15,6.1437]
[1733740019785,0.12549,227.3,227.15,6.1437]
[1733740020385,20.12549,227.27,227.15,6.1437]
[1733740020616,20.0,227.23,227.15,6.1437]
[1733740021891,20.0,227.19,227.15,6.1437]
[1733740023618,24.027864,227.26,227.15,6.1437]
[1733740023792,20.0,227.19,227.15,6.1437]
[1733740024719,20.0,227.19,227.02,81.1]
[1733740024720,0.12549,227.18,227.1,6.2839]
[1733740026195,20.0,227.15,227.1,6.2839]
[1733740026934,20.0,227.15,227.07,1.6533]
[1733740028428,23.902374,227.18,227.07,1.6533]
[1733740028429,0.12549,227.18,227.07,1.6533]
[1733740029423,1.73880126,227.19,227.07,2.31376809]
[1733740029624,6.85846769,227.28,227.07,2.31376809]
[1733740029801,0.12549,227.27,227.07,2.31376809]
[1733740030190,0.12549,227.27,227.07,1.6533]
[1733740030723,23.902374,227.24,227.07,1.6533]
[1733740030905,20.0,227.17,227.07,1.6533]
[1733740034599,21.78920655,227.17,227.07,1.6533]
[1733740035722,0.12549,227.16,227.07,1.6533]
[1733740035906,20.0,227.13,227.07,1.6533]
[1733740037021,20.0,227.09,227.05,6.2349]
[1733740039927,20.0,227.09,227.02,1.6103]
[1733740041844,0.12549,227.12,227.02,1.6103]
[1733740044435,0.12549,227.12,227.0,6.0763]
[1733740044436,0.12549,227.12,227.0,4.466]
[1733740044645,0.12549,227.1,226.96,1.5476]
[1733740044942,0.25098,227.1,226.96,1.5476]
[1733740045277,0.12549,227.1,226.96,1.5476]
[1733740045446,0.12549,227.08,226.96,1.5476]
[1733740046042,20.0,227.13,226.96,1.5476]
[1733740046249,0.12549,227.08,226.96,1.5476]
[1733740046613,20.0,227.09,226.96,1.5476]
[1733740047043,24.027864,227.08,226.96,1.5476]
[1733740047221,20.0,227.05,226.96,1.5476]
[1733740047544,20.0,227.05,226.97,6.2556]
[1733740048839,0.12549,227.04,226.97,6.2556]
[1733740049051,20.0,227.05,226.97,6.2556]
[1733740049562,0.12549,227.04,226.97,6.2556]
[1733740051962,20.0,227.01,226.96,1.5476]
[1733740052164,20.0,226.97,226.92,6.6284]
[1733740052664,20.0,226.97,226.81,6.6284]
[1733740053672,20.0,226.97,226.82,0.25098]
[1733740053842,20.0,226.97,226.82,0.12549]
[1733740054376,0.12549,226.96,226.82,0.12549]
[1733740054662,0.12549,226.96,226.81,6.6284]
[1733740055036,0.12549,226.96,226.82,1.5341]
[1733740055037,20.0,226.93,226.82,1.5341]
[1733740055928,20.0,226.89,226.82,1.5341]
[1733740059643,23.902374,226.88,226.81,6.6284]
[1733740059851,20.0,226.85,226.81,6.6284]
[1733740060369,23.902374,226.88,226.81,6.6284]
[1733740060550,0.12549,226.84,226.77,1.6621]
[1733740062363,0.12549,226.84,226.72,0.5115199]
[1733740063146,0.25098,226.84,226.72,0.5115199]
[1733740063345,24.027864,226.84,226.72,0.5115199]
[1733740063540,0.12549,226.83,226.72,0.5115199]
[1733740063764,0.12549,226.8,226.72,0.5115199]
[1733740064175,0.12549,226.78,226.72,0.5115199]
[1733740064357,1.5114,226.79,226.59,1.5064]
[1733740064358,0.12549,226.72,226.59,1.5064]
[1733740065241,0.25098,226.72,226.59,1.5064]
[1733740065568,20.0,226.73,226.59,1.5064]
[1733740065569,20.0,226.73,226.6,0.66181193]
[1733740065775,0.12549,226.77,226.6,0.66181193]
[1733740065940,0.12549,226.77,226.62,6.3054]
[1733740066147,0.12549,226.78,226.63,0.66163165]
[1733740066675,20.0,226.8,226.63,0.66163165]
[1733740067181,0.12549,226.79,226.63,0.66163165]
[1733740067750,23.902374,226.79,226.63,0.66163165]
[1733740068056,0.12549,226.75,226.62,6.3054]
[1733740069540,23.902374,226.83,226.63,24.43857726]
[1733740069875,0.12549,226.79,226.63,24.43857726]
[1733740070059,20.0,226.8,226.63,24.43857726]
[1733740070060,20.0,226.8,226.66,23.776884]
[1733740070389,1.5533,226.85,226.67,0.66153885]
[1733740070390,20.0,226.84,226.67,0.66153885]
[1733740071473,24.027864,226.83,226.67,0.66153885]
[1733740071777,20.0,226.8,226.67,0.66153885]
[1733740071958,20.0,226.8,226.66,23.776884]
[1733740072356,0.12549,226.79,226.65,2.21498239]
[1733740072666,0.12549,226.79,226.65,1.5534]
[1733740072667,0.25098,226.79,226.65,1.5534]
[1733740073687,0.12549,226.79,226.66,0.66165386]
[1733740073980,20.0,226.84,226.67,23.776884]
[1733740074152,23.902374,226.84,226.67,23.776884]
[1733740074480,1.73822484,226.85,226.69,23.776884]
[1733740074645,1.6295,226.91,226.7,2.19782191]
[1733740074965,0.12549,226.9,226.7,2.19782191]
[1733740075476,1.6295,226.91,226.7,2.19782191]
[1733740075778,0.12549,226.9,226.7,2.19782191]
[1733740075951,0.12549,226.9,226.71,23.776884]
[1733740076150,20.0,226.89,226.72,0.66138443]
[1733740076385,0.12549,226.9,226.72,0.66138443]
[1733740077374,1.6295,226.91,226.73,23.776884]
[1733740077679,20.0,226.89,226.74,0.66133736]
[1733740077843,20.0,226.89,226.75,6.2086]
[1733740078751,0.12549,226.88,226.75,6.2086]
[1733740079480,0.25098,226.88,226.75,6.2086]
[1733740080348,0.12549,226.88,226.75,6.86998478]
[1733740080580,0.12549,226.9,226.75,6.86998478]
[1733740080885,0.12549,226.9,226.75,6.2086]
[1733740081888,0.12549,226.9,226.76,0.66135335]
[1733740082054,0.12549,226.9,226.76,2.17465335]
[1733740082975,0.12549,226.9,226.76,1.5133]
[1733740083294,0.12549,226.9,226.76,2.17458741]
[1733740083952,1.80057209,226.94,226.78,0.12549]
[1733740084167,17.643584,227.01,226.8,23.776884]
[1733740084580,1.5431,227.02,226.81,1.6434]
[1733740084754,3.33842294,227.02,226.82,24.43798138]
[1733740084956,1.5431,227.02,226.84,6.6095]
[1733740085173,1.5431,227.02,226.85,23.776884]
[1733740085965,8.0021,227.08,226.86,1.6434]
[1733740086157,23.902374,227.07,226.86,1.6434]
[1733740086486,9.76690351,227.08,226.87,23.776884]
[1733740087056,3.39670351,227.08,226.89,23.776884]
[1733740087258,3.39670351,227.08,226.89,24.43776412]
[1733740087473,1.76480351,227.08,226.91,23.776884]
[1733740087676,6.5793,227.13,226.93,6.067]
[1733740087892,1.5625,227.14,226.95,1.5721]
[1733740088458,1.79581029,227.14,226.96,23.776884]
[1733740088682,7.7591,227.19,226.99,6.1564]
[1733740088885,7.7591,227.19,226.99,6.81698634]
[1733740089064,7.7591,227.19,226.99,6.1564]
[1733740089262,0.12549,227.18,226.99,6.1564]
[1733740089464,7.7591,227.19,226.99,6.1564]
[1733740090170,24.027864,227.18,226.99,6.1564]
[1733740090671,20.0,227.15,226.99,6.1564]
[1733740090892,20.0,227.07,226.99,6.1564]
[1733740091102,0.12549,227.06,227.0,1.745283]
[1733740091387,20.0,227.03,226.95,1.5721]
[1733740093764,23.902374,227.06,226.95,1.5721]
[1733740093765,0.12549,227.06,226.95,1.5721]
[1733740093965,23.776884,227.17,226.95,1.5721]
[1733740094170,0.12549,227.17,226.95,1.5721]
[1733740094412,0.12549,227.17,226.96,6.3226]
[1733740095274,1.91270827,227.17,226.96,6.3226]
[1733740095473,0.25098,227.15,226.96,6.3226]
[1733740095687,24.027864,227.12,226.96,6.3226]
[1733740095891,0.25098,227.08,226.96,6.3226]
[1733740096075,24.027864,227.08,226.96,6.3226]
[1733740096276,0.12549,227.04,226.96,6.3226]
[1733740096478,0.25098,227.04,226.96,6.3226]
[1733740096902,20.0,227.01,226.95,1.5721]
[1733740097205,0.12549,227.0,226.95,1.5721]
[1733740097407,20.0,227.01,226.95,1.5721]
[1733740097970,20.0,227.06,226.95,1.5721]
[1733740098180,20.0,227.11,226.95,1.5721]
[1733740098817,0.12549,227.1,226.95,1.5721]
[1733740099404,0.25098,227.1,226.95,1.5721]
[1733740100114,0.12549,227.02,226.95,1.5721]
[1733740100809,20.0,227.11,226.95,1.5721]
[1733740100983,23.902374,227.1,226.95,1.5721]
[1733740101183,0.25098,227.06,226.95,1.5721]
[1733740101415,0.25098,227.06,226.96,0.66072764]
[1733740102080,20.0,227.07,226.96,0.66072764]
[1733740102411,20.0,227.11,226.96,0.66072764]
[1733740102987,3.42655107,227.14,226.96,0.66072764]
[1733740103320,1.76665107,227.14,226.98,6.6386]
[1733740103522,7.7903,227.19,226.98,7.29920349]
[1733740103694,6.2791,227.24,227.01,23.776884]
[1733740103883,6.2791,227.24,227.02,0.66048648]
[1733740104383,6.2791,227.24,227.03,25.364884]
[1733740104602,8.03915604,227.24,227.04,0.66044169]
[1733740105216,20.0,227.21,227.04,0.66044169]
[1733740106292,1.76005604,227.24,227.05,30.051584]
[1733740106608,0.5115199,227.28,227.06,0.6603652]
[1733740106998,0.5115199,227.28,227.09,0.12549]
[1733740107193,0.5115199,227.28,227.09,24.56262371]
[1733740107395,2.31421513,227.28,227.11,23.902374]
[1733740107719,0.12549,227.27,227.11,23.902374]
[1733740108017,0.12549,227.27,227.11,23.776884]
[1733740108418,0.5115199,227.28,227.11,23.776884]
[1733740108718,0.12549,227.26,227.11,23.776884]
[1733740109717,0.12549,227.26,227.1,6.5999]
[1733740110087,20.0,227.24,227.1,6.5999]
[1733740110289,20.0,227.2,227.1,6.5999]
[1733740110509,0.12549,227.19,227.1,6.5999]
[1733740110806,0.25098,227.19,227.1,6.5999]
[1733740110986,24.027864,227.19,227.08,1.6538]
[1733740111184,0.12549,227.15,227.08,1.6538]
[1733740112009,23.902374,227.15,227.04,6.1084]
[1733740112210,20.0,227.12,227.04,6.1084]
[1733740112414,0.12549,227.11,227.03,1.5003]
[1733740113199,23.902374,227.11,227.03,1.5003]
[1733740113506,0.12549,227.07,227.03,1.5003]
[1733740113991,0.12549,227.07,226.99,6.1084]
[1733740114388,0.25098,227.07,226.99,6.1084]
[1733740116323,24.027864,227.07,226.99,6.1084]
[1733740116522,0.12549,227.03,226.93,1.5468]
[1733740117688,23.902374,227.05,226.93,1.5468]
[1733740117890,20.0,227.02,226.93,1.5468]
[1733740119487,0.12549,227.01,226.93,1.5468]
[1733740120591,0.25098,227.01,226.93,1.5468]
[1733740120792,0.12549,226.97,226.93,1.5468]
[1733740121008,20.0,226.98,226.93,1.5468]
[1733740121419,0.12549,227.01,226.93,1.5468]
[1733740124711,1.79415214,227.05,226.93,1.5468]
[1733740125015,7.7575,227.17,226.94,0.66086018]
[1733740125347,7.831,227.13,226.95,23.902374]
[1733740125516,7.7575,227.17,226.96,0.66059754]
[1733740125832,27.17719176,227.17,226.96,0.66059754]
[1733740125994,27.17719176,227.17,226.93,1.5468]
[1733740126835,20.0,227.14,226.93,1.5468]
[1733740127127,20.0,227.1,226.94,0.66070616]
[1733740127502,0.12549,227.09,226.94,0.66070616]
[1733740128540,0.25098,227.09,226.94,0.66070616]
[1733740134524,0.12549,227.09,226.95,23.902374]
[1733740134718,0.12549,227.09,226.96,0.66063823]
[1733740135344,0.12549,227.09,226.94,0.66068147]
[1733740136447,0.12549,227.09,226.95,23.902374]
[1733740136619,0.12549,227.09,226.96,0.66064124]
[1733740137234,21.81552815,227.1,226.96,0.66064124]
[1733740137544,1.81552815,227.1,226.96,0.66064124]
[1733740137747,23.776884,227.13,226.97,1.5764]
[1733740137931,23.776884,227.13,226.99,6.3562]
[1733740138426,0.25098,227.12,226.99,6.3562]
[1733740138849,0.12549,227.09,226.99,6.3562]
[1733740140958,0.25098,227.09,226.99,6.3562]
[1733740142651,0.12549,227.05,226.97,1.5764]
[1733740143027,0.12549,227.05,226.93,6.0013]
[1733740143028,20.0,227.02,226.93,6.0013]
[1733740143226,0.12549,227.01,226.92,1.6401]
[1733740143428,20.0,226.98,226.88,6.0013]
[1733740143632,0.12549,226.97,226.88,6.0013]
[1733740144542,0.12549,226.97,226.87,1.6401]
[1733740146941,0.12549,226.97,226.82,7.8671]
[1733740146942,0.12549,226.93,226.82,7.8671]
[1733740149138,0.12549,226.91,226.77,6.4269]
[1733740149334,0.25098,226.89,226.77,6.4269]
[1733740149565,20.0,226.86,226.77,6.4269]
[1733740149754,0.12549,226.85,226.77,6.4269]
[1733740150358,0.12549,226.85,226.75,1.5198]
[1733740151670,0.12549,226.85,226.71,6.92035896]
[1733740151872,0.12549,226.85,226.71,6.259]
[1733740152776,0.12549,226.81,226.71,6.259]
[1733740154051,0.12549,226.81,226.7,1.5321]
[1733740155079,0.12549,226.81,226.66,6.1295]
[1733740155260,20.0,226.79,226.66,6.1295]
[1733740155479,0.12549,226.78,226.66,6.1295]
[1733740155990,6.4117,226.83,226.69,0.12549]
[1733740156290,1.656,226.86,226.69,13.61432244]
[1733740156456,6.4117,226.88,226.73,0.12549]
[1733740156665,6.4117,226.88,226.73,0.7867723]
[1733740157375,20.0,226.85,226.73,0.6612823]
[1733740157580,0.25098,226.87,226.71,23.902374]
[1733740157914,0.25098,226.87,226.72,0.66134231]
[1733740158204,8.19594105,226.88,226.73,23.902374]
[1733740158493,8.19594105,226.88,226.68,36.72980775]
[1733740158664,8.19594105,226.88,226.72,0.66129844]
[1733740159587,20.0,226.85,226.73,0.66135255]
[1733740159762,1.78424105,226.88,226.74,1.6551]
[1733740159961,0.12549,226.87,226.74,1.6551]
[1733740160487,0.12549,226.87,226.75,0.66131151]
[1733740161281,0.12549,226.89,226.75,0.66131151]
[1733740161482,0.12549,226.89,226.76,6.4797]
[1733740161684,6.549,226.93,226.77,0.66123327]
[1733740161894,1.5403,226.97,226.78,23.902374]
[1733740162071,1.73392921,226.97,226.82,23.902374]
[1733740162390,6.549,226.98,226.83,0.66100413]
[1733740162596,1.7472371,227.01,226.84,23.902374]
[1733740162900,0.12549,227.01,226.86,6.5979]
[1733740163393,1.5403,227.02,226.86,6.5979]
[1733740163687,1.5403,227.02,226.87,23.902374]
[1733740163890,0.12549,227.03,226.88,0.66088719]
[1733740164387,6.6662,227.04,226.88,0.66088719]
[1733740164776,0.12549,227.03,226.88,0.66088719]
[1733740165699,0.25098,227.03,226.88,0.66088719]
[1733740166793,20.0,227.01,226.88,0.66088719]
[1733740166969,20.0,227.01,226.87,23.776884]
[1733740167176,0.12549,227.0,226.86,6.5979]
[1733740168992,0.12549,226.96,226.81,2.31613161]
[1733740169202,0.12549,226.96,226.81,1.6551]
[1733740169902,0.12549,226.96,226.82,0.66105439]
[1733740171711,20.0,226.93,226.81,1.6551]
[1733740171892,0.12549,226.92,226.81,1.6551]
[1733740173123,0.25098,226.92,226.81,1.6551]
[1733740173719,0.25098,226.92,226.77,0.66112924]
[1733740174520,2.03768607,226.92,226.77,0.66112924]
[1733740174893,2.03768607,226.92,226.76,1.566]
[1733740176317,23.776884,226.91,226.76,1.566]
[1733740176517,0.12549,226.87,226.76,1.566]
[1733740179627,0.12549,226.89,226.76,2.22729607]
[1733740180885,0.12549,226.89,226.76,1.566]
[1733740182501,0.12549,226.89,226.76,2.22726016]
[1733740184223,0.12549,226.92,226.77,23.902374]
[1733740184433,20.0,226.9,226.78,0.66115252]
[1733740184739,6.2338,226.99,226.79,23.902374]
[1733740184897,6.2338,226.99,226.8,0.66109944]
[1733740184898,17.642257,226.96,226.8,0.66109944]
[1733740185807,0.12549,226.96,226.8,0.66109944]
[1733740186195,0.25098,226.96,226.8,0.66109944]
[1733740186625,20.0,226.94,226.8,0.66109944]
[1733740189105,20.0,226.94,226.81,23.902374]
[1733740189302,20.12549,226.96,226.83,8.2453]
[1733740189502,1.80439047,226.97,226.84,0.66100209]
[1733740189828,1.5243,227.03,226.85,23.902374]
[1733740190125,1.5243,227.03,226.87,23.902374]
[1733740190307,6.845796,227.02,226.9,1.6599]
[1733740190499,8.13485184,227.05,226.9,2.32074636]
[1733740190691,8.64304784,227.05,226.9,2.32074636]
[1733740191098,0.12549,227.04,226.9,2.32074636]
[1733740191529,1.79725184,227.05,226.92,6.4812]
[1733740191737,8.643048,227.07,226.93,0.66077059]
[1733740191935,0.12549,227.06,226.93,0.66077059]
[1733740192807,20.0,227.04,226.93,0.66077059]
[1733740198610,20.0,227.07,226.93,0.66077059]
[1733740199116,0.12549,227.06,226.93,0.66077059]
[1733740200140,0.12549,227.06,226.92,6.4812]
[1733740200318,0.12549,227.02,226.92,6.4812]
[1733740200518,20.0,227.03,226.93,0.66088536]
[1733740200733,20.0,227.03,226.92,6.4812]
[1733740200934,20.0,227.04,226.92,6.4812]
[1733740201150,0.25098,227.03,226.92,6.4812]
[1733740201539,0.12549,227.03,226.92,7.14204458]
[1733740201737,0.12549,227.03,226.92,6.4812]
[1733740202417,20.0,227.04,226.93,0.25098]
[1733740202625,1.7778007,227.09,226.93,36.98078775]
[1733740202939,6.4812,227.13,226.95,23.902374]
[1733740203449,0.12549,227.12,226.95,23.902374]
[1733740203829,20.0,227.1,226.95,23.902374]
[1733740204033,8.1588,227.16,226.97,0.12549]
[1733740204034,9.89636878,227.16,226.97,0.12549]
[1733740204260,0.12549,227.15,226.99,23.902374]
[1733740204432,0.12549,227.15,227.0,0.66052239]
[1733740204632,1.73756878,227.16,227.01,23.902374]
[1733740204854,1.5421,227.22,227.02,0.66047451]
[1733740205162,7.8695,227.17,227.02,0.66047451]
[1733740205728,7.8695,227.17,226.98,7.8695]
[1733740205729,7.8695,227.17,227.0,23.902374]
[1733740205966,7.8695,227.17,226.98,7.8695]
[1733740206127,20.0,227.14,226.98,7.8695]
[1733740207040,23.902374,227.13,226.98,7.8695]
[1733740207346,1.5,227.04,226.98,7.8695]
[1733740208850,0.12549,227.03,226.88,0.66077744]
[1733740209055,0.25098,227.03,226.88,0.66077744]
[1733740209249,0.25098,227.03,226.83,0.66090159]
[1733740209446,0.12549,226.99,226.84,1.6159]
[1733740209636,0.12549,226.99,226.85,0.66095652]
[1733740211552,0.12549,226.99,226.84,1.6159]
[1733740211759,0.12549,226.99,226.85,0.66099748]
[1733740212155,20.12549,227.03,226.87,0.12549]
[1733740212347,20.12549,227.03,226.88,23.902374]
[1733740212547,20.12549,227.03,226.89,0.66085356]
[1733740213644,3.30906203,227.04,226.89,0.66085356]
[1733740214046,0.12549,227.03,226.89,0.66085356]
[1733740214266,0.25098,227.03,226.88,23.902374]
[1733740214466,0.25098,227.03,226.87,0.12549]
[1733740214467,0.25098,227.03,226.87,23.902374]
[1733740214978,44.027864,227.03,226.85,23.776884]
[1733740215149,44.027864,227.03,226.86,0.66092107]
[1733740216158,20.12549,227.03,226.88,0.12549]
[1733740216361,3.30906203,227.04,226.9,0.12549]
[1733740216558,3.30906203,227.04,226.91,25.461874]
[1733740216775,1.5,227.04,226.92,0.66075063]
[1733740217095,1.5,227.04,226.93,23.902374]
[1733740217383,1.5,227.04,226.94,0.6606767]
[1733740217679,1.5,227.04,226.95,23.902374]
[1733740217868,1.5,227.04,226.97,23.776884]
[1733740218180,1.5,227.04,226.98,0.6605661]
[1733740219181,1.5,227.04,226.96,1.5595]
[1733740220183,1.5,227.04,226.96,2.22023043]
[1733740220680,1.5,227.04,226.96,1.5595]
[1733740221093,0.12549,227.03,226.96,1.5595]
[1733740221386,1.5,227.04,226.96,1.5595]
[1733740222170,1.5,227.04,226.97,0.66069288]
[1733740225570,1.5,227.04,226.98,23.902374]
[1733740225882,1.5,227.04,227.0,24.027864]
[1733740226057,1.5,227.04,227.02,23.902374]
[1733740226262,1.5,227.04,227.03,0.66044552]
[1733740226495,1.5,227.04,227.02,23.902374]
[1733740226788,1.5,227.04,227.01,24.027864]
[1733740226993,1.5,227.04,227.02,0.66047051]
[1733740228998,1.74159237,227.16,227.03,24.027864]
[1733740229185,20.0,227.17,227.05,1.6609]
[1733740229399,6.86253102,227.2,227.06,0.66034912]
[1733740230108,6.86253102,227.2,227.07,0.12549]
[1733740230292,6.86253102,227.2,227.08,0.66030857]
[1733740230607,6.86253102,227.2,227.09,24.027864]
[1733740230781,6.86253102,227.2,227.11,23.902374]
[1733740230981,6.86253102,227.2,227.12,0.66017683]
[1733740231904,6.86253102,227.2,227.09,24.027864]
[1733740232318,20.0,227.17,227.1,0.66017546]
[1733740233083,20.0,227.17,227.11,0.12549]
[1733740233294,20.0,227.17,227.12,0.66018958]
[1733740233615,6.86253102,227.2,227.13,0.12549]
[1733740233776,6.86253102,227.2,227.14,2.28729313]
[1733740235887,6.86253102,227.2,227.15,24.027864]
[1733740236101,6.86253102,227.2,227.16,0.66004903]
[1733740236782,6.86253102,227.2,227.17,24.027864]
[1733740236982,6.86253102,227.2,227.18,0.65999917]
[1733740237899,6.3301,227.22,227.18,0.65999917]
[1733740238427,6.3301,227.22,227.19,24.027864]
[1733740239016,1.7909788,227.26,227.19,24.027864]
[1733740239202,0.66017683,227.34,227.19,24.027864]
[1733740239203,0.66017683,227.34,227.2,0.65995936]
[1733740240705,20.0,227.32,227.2,0.65995936]
[1733740240898,2.31780188,227.28,227.2,0.65995936]
[1733740243516,2.31780188,227.28,227.16,0.6599862]
[1733740243809,0.78566683,227.27,227.14,1.6272]
[1733740244025,23.902374,227.26,227.14,1.6272]
[1733740244184,20.0,227.23,227.14,1.6272]
[1733740244584,0.66017683,227.22,227.14,1.6272]
[1733740245086,20.0,227.23,227.14,1.6272]
[1733740245303,20.0,227.24,227.15,0.66014769]
[1733740245822,20.0,227.24,227.14,1.6272]
[1733740245823,0.66017683,227.23,227.14,1.6272]
[1733740246794,0.66017683,227.23,227.1,0.66013169]
[1733740247922,0.66017683,227.23,227.11,0.25098]
[1733740248096,0.66017683,227.23,227.12,0.66020047]
[1733740248492,0.66017683,227.23,227.1,24.027864]